Cogmind - Beta 9.6 @@@ ROGUE MODE // 2020.09.09 @ 00:44:46 Player: dhtilly Result: Destroyed self with Grenade Launcher Performance ------------- Evolutions (0) 0 Regions Visited (2) 400 Robots Destroyed (30) 150 Value Destroyed (733) 733 Prototype IDs (0) 0 Alien Tech Used (0) 0 Bonus (0) 0 TOTAL SCORE: 1283 Bonus ------- None Cogmind --------- Core Integrity 0/250 Matter 260/300 Energy 242/250 System Corruption 0% Temperature Cool (27) Movement Rolling (90) Location -10/Mines Parts ------- > --- POWER (1) -------- Ion Engine > --- PROPULSION (2) --- Wheel Compact Wheel > --- UTILITY (2) ------ Medium Storage Unit Medium Storage Unit > --- WEAPON (2) ------- Small Laser Grenade Launcher > --- INVENTORY (12) --- Light Nuclear Core Aluminum Leg Aluminum Leg Wheel Improved Heat Sink Small Storage Unit Small Storage Unit Sensor Array Propulsion Shielding Hacking Suite Datajack Peak State ------------ > --- POWER ------------ Ion Engine > --- PROPULSION ------- Wheel Compact Wheel > --- UTILITY ---------- Medium Storage Unit Medium Storage Unit > --- WEAPON ----------- Light Assault Rifle Light Assault Rifle > --- INVENTORY -------- Light Ion Engine Light Nuclear Core Aluminum Leg Aluminum Leg Small Storage Unit Small Storage Unit Sensor Array Propulsion Shielding Small Laser [Rating: 8] Favorites ----------- Power Ion Engine Engine Ion Engine Propulsion Wheel Wheel Wheel Utility Medium Storage Unit Storage Medium Storage Unit Weapon Light Assault Rifle Energy Gun Small Laser Energy Cannon Beam Cannon Ballistic Gun Light Assault Rifle Launcher Grenade Launcher Special Weapon Mining Laser Build | -11 -10 -10 ------- Run | Scr Mat Min Slots Evolved . | . . . Power . | . . . Propulsion . | . . . Utility . | . . . Weapon . | . . . Parts Attached 21 | 6 13 2 Power 4 | 1 3 . Engine 4 | 1 3 . Core . | . . . Reactor . | . . . Propulsion 5 | 2 2 1 Treads . | . . . Leg . | . . . Wheel 5 | 2 2 1 Hover . | . . . Flight . | . . . Utility 3 | 1 2 . Device . | . . . Storage 3 | 1 2 . Processor . | . . . Hackware . | . . . Protection . | . . . Artifact . | . . . Weapon 9 | 2 6 1 Energy Gun 4 | 1 3 . Energy Cannon 1 | . 1 . Ballistic Gun 2 | 1 1 . Ballistic Cannon . | . . . Launcher 1 | . . 1 Special Weapon 1 | . 1 . Impact Weapon . | . . . Slashing Weapon . | . . . Piercing Weapon . | . . . Special Melee Weapon . | . . . Unidentified Prototypes . | . . . Parts Lost 11 | . 9 2 Power 2 | . 2 . Propulsion 3 | . 2 1 Utility . | . . . Weapon 6 | . 5 1 Highest Loss Streak 3 | . 3 2 Average Slot Usage (%) 95 | . 95 97 Engine 14 | . 14 14 Wheel 25 | . 24 28 Storage 27 | . 27 28 Energy Gun 11 | . 11 14 Energy Cannon 2 | . 2 8 Ballistic Gun 11 | . 12 . Special Weapon 1 | . 1 . Naked Turns . | . . . Heaviest Build 25 | 12 25 25 Greatest Support 26 | 20 26 26 Greatest Overweight (x) 1 | . 1 1 Average Overweight (x) . | . . . Largest Inventory Capacity 12 | 6 12 12 Average Capacity 11 | 5 11 12 Most Carried 12 | 4 12 12 Average Carried 9 | 2 9 11 Final Capacity 12 | 6 12 12 Final Carried 12 | 4 12 11 Class Distribution -------------------- 100% | Mutant Dominant Class ---------------- Mutant | -10/Materials Mutant | -10/Mines Resources | -11 -10 -10 ----------- Run | Scr Mat Min Matter Collected 492 | 216 276 . Remotely . | . . . Salvage Created 960 | . 923 37 Parts 70 | . 67 3 Haulers Intercepted 2 | . 2 . Recyclers Shooed 1 | . 1 . Parts Field Recycled . | . . . Retrieved Matter . | . . . Parts Self-Destructed . | . . . Prevented . | . . . Kills | -11 -10 -10 ------- Run | Scr Mat Min Combat Hostiles Destroyed 20 | . 19 1 Guns 19 | . 19 . AOE 1 | . . 1 Classes Destroyed 8 | . 8 . Worker 1 | . 1 . Tunneler 2 | . 1 1 Hauler 2 | . 2 . Recycler 1 | . 1 . Operator 2 | . 2 . Watcher 2 | . 2 . Swarmer 3 | . 3 . Grunt 17 | . 16 1 Best Kill Streak 5 | . 5 2 Combat Bots Only 3 | . 3 1 Max Kills in Single Turn 1 | . 1 1 Gunslinging . | . . . Exploded 1 | . . 1 Melee . | . . . Uniques/NPCs Destroyed . | . . . Combat | -11 -10 -10 -------- Run | Scr Mat Min Damage Taken 1065 | . 860 205 Core 258 | . 182 76 Absorbed by Shields . | . . . Core Remaining (%) 100 | 100 . . Volleys Fired 115 | . 107 8 Largest 2 | . 2 2 Hottest 140 | . 140 100 Shots Fired 222 | . 207 15 Gun 202 | . 194 8 Cannon 14 | . 10 4 Launcher 3 | . . 3 Special 3 | . 3 . Kinetic 132 | . 132 . Thermal 87 | . 75 12 Explosive 3 | . . 3 Electromagnetic . | . . . Robot Hit Streak 10 | . 10 4 Robot Miss Streak 5 | . 5 2 Penetration Max . | . . . Secondary Targets 1 | . 1 . Max Gunslinging Chain 1 | . 1 . Shots Hit Robots 146 | . 139 7 Core Hits 62 | . 58 4 Critical Hits 1 | . 1 . Critical Kills . | . . . Critical Parts Destroyed 1 | . 1 . Melee Attacks . | . . . Impact . | . . . Slashing . | . . . Piercing . | . . . Sneak Attacks . | . . . Combat Hostiles . | . . . Follow-up Attacks . | . . . Damage Inflicted 1552 | . 1370 182 Guns 1348 | . 1315 33 Cannons 104 | . 52 52 Explosions 78 | . . 78 Melee . | . . . Ramming 22 | . 3 19 Kinetic 723 | . 723 . Thermal 729 | . 644 85 Explosive 78 | . . 78 Electromagnetic . | . . . Impact . | . . . Slashing . | . . . Piercing . | . . . Highest Corruption . | . . . Average Corruption . | . . . Corruption Purged . | . . . Overload Shots . | . . . Overflow Damage 5 | . 5 . Projectiles 5 | . 5 . Explosions . | . . . Melee . | . . . Knockbacks . | . . . Impact . | . . . Kinetic . | . . . Secondary . | . . . Self-Inflicted Damage 40 | . 1 39 Shots 2 | . . 2 Rammed 2 | . 1 1 Targets Rammed 2 | . 1 1 Kicked . | . . . Crushed . | . . . Highest Temperature 252 | . 252 210 Average Temperature 74 | . 72 88 Received Heat Transfer 549 | . 453 96 Siege Activations . | . . . Robots Corrupted . | . . . Combat Hostiles . | . . . Parts Fried . | . . . Impact Corruptions . | . . . Robots Melted . | . . . Combat Hostiles . | . . . Parts Melted 3 | . 3 . Heat Transferred 1785 | . 1599 186 Parts Sabotaged . | . . . Parts Stolen . | . . . Parts Stripped . | . . . Power Chain Reactions . | . . . Missiles Intercepted . | . . . Alert | -11 -10 -10 ------- Run | Scr Mat Min Peak Influence 297 | . 297 83 Average Influence 141 | . 150 69 Maximum Alert Level 1 | . 1 . Low Security (%) 72 | 100 70 100 Level 1 27 | . 29 . Level 2 . | . . . Level 3 . | . . . Level 4 . | . . . Level 5 . | . . . High Security . | . . . Max Security . | . . . Squads Dispatched 7 | . 7 . Investigation 2 | . 2 . Extermination . | . . . Reinforcement 5 | . 5 . Assault . | . . . Garrison . | . . . Intercept . | . . . Construction Impeded . | . . . Haulers Reinforced . | . . . Stealth | -11 -10 -10 --------- Run | Scr Mat Min Distress Signals 1 | . 1 . Communications Jammed . | . . . Distress Signals . | . . . Times Spotted 45 | . 43 2 Peak Tracking Total 4 | . 4 2 Tactical Retreats . | . . . Traps | -11 -10 -10 ------- Run | Scr Mat Min Traps Triggered 2 | . 2 . Indirectly . | . . . Trap Hack Attempts . | . . . Triggered . | . . . Disarmed . | . . . Reprogrammed . | . . . Reused . | . . . Traps Extracted . | . . . Installed . | . . . Triggered . | . . . Machines | -11 -10 -10 ---------- Run | Scr Mat Min Machines Disabled 1 | . 1 . Max in Single Turn 1 | . 1 . Machines Sabotaged . | . . . Garrisons Compromised . | . . . Overloaded Fab Kills . | . . . Fab Network Shutdowns . | . . . Hacking | -11 -10 -10 --------- Run | Scr Mat Min Machines Accessed 4 | . 4 . Terminals 3 | . 3 . Fabricators . | . . . Repair Stations . | . . . Recycling Units 1 | . 1 . Scanalyzers . | . . . Garrison Access . | . . . Total Hacks 14 | . 14 . Successful 6 | . 6 . Failed 8 | . 8 . Catastrophic . | . . . Database Lockouts . | . . . Manual 4 | . 4 . Terminals 13 | . 13 . Fabricators . | . . . Repair Stations . | . . . Recycling Units 1 | . 1 . Scanalyzers . | . . . Garrison Access . | . . . Terminal Hacks 5 | . 5 . Branch Access Points 1 | . 1 . Alert Level 1 | . 1 . Hauler Manifests 1 | . 1 . Registered Components 1 | . 1 . Zone Layout 1 | . 1 . Fabricator Hacks . | . . . Repair Station Hacks . | . . . Recycling Unit Hacks 1 | . 1 . Report Inventory 1 | . 1 . Scanalyzer . | . . . Garrison Access Hacks . | . . . Unauthorized Hacks . | . . . Terminals . | . . . Fabricators . | . . . Repair Stations . | . . . Recycling Units . | . . . Scanalyzers . | . . . Garrison Access . | . . . Data Cores Recovered . | . . . Used . | . . . Hacking Detections 3 | . 3 . Full Trace Events 2 | . 2 . Feedback Events . | . . . Feedback Blocked . | . . . Robot Schematics Acquired . | . . . Robots Built . | . . . Matter . | . . . Time . | . . . Total Robot Build Rating . | . . . Part Schematics Acquired . | . . . Parts Built . | . . . Matter . | . . . Time . | . . . Total Part Build Rating . | . . . Parts Repaired . | . . . Time . | . . . Parts Recycled . | . . . Recycled Matter . | . . . Retrieved Matter . | . . . Retrieved Components . | . . . Parts Scanalyzed . | . . . Part Schematics Acquired . | . . . Parts Damaged . | . . . Bothacking | -11 -10 -10 ------------ Run | Scr Mat Min Used RIF Installer . | . . . Robots Hacked . | . . . Non-combat . | . . . Combat . | . . . Robot Hacks Applied . | . . . Relay Couplers Released . | . . . Robots Rewired . | . . . Allies Hacked . | . . . Hacks Repelled . | . . . Allies | -11 -10 -10 -------- Run | Scr Mat Min Total Allies . | . . . Largest Group . | . . . Highest-Rated Group . | . . . Highest-Rated Ally . | . . . Total Orders . | . . . Ally Attacks . | . . . Total Damage . | . . . Kills . | . . . Allies Corrupted . | . . . Allies Melted . | . . . Intel | -11 -10 -10 ------- Run | Scr Mat Min Robot Analysis Total . | . . . Derelict Logs Recovered . | . . . Drone Launches . | . . . Drone Recoveries . | . . . Exploration | -11 -10 -10 ------------- Run | Scr Mat Min Turns Passed 1184 | 40 1090 54 Spaces Moved 840 | 34 775 31 Core 1 | 1 . . Treads . | . . . Legs . | . . . Wheels 839 | 33 775 31 Hover . | . . . Flight . | . . . Fastest Speed 50 | 50 80 90 Average Speed 92 | 79 93 90 Slowest Speed 110 | 80 110 110 Overloaded Moves . | . . . Propulsion Burnouts . | . . . Robots Hopped . | . . . Cave-ins Triggered . | . . . Exploration Rate (%) 32 | 3 80 13 Regions Visited 2 Branch Regions 1 Pre-discovered Areas . | . . . Known Exits Taken 1 | . 1 . Unknown Exits Taken 1 | 1 . . Scrap Searched . | . . . Spaces Dug . | . . . Terrain Destroyed 24 | . 1 23 Melee . | . . . Projectile 1 | . 1 . AOE 23 | . . 23 Actions | -11 -10 -10 --------- Run | Scr Mat Min Total 1039 | 43 952 44 Wait 41 | . 40 1 Move 838 | 33 774 31 Hop . | . . . Pick Up 19 | 4 14 1 Fast Attach 11 | 6 5 . Attach 8 | . 6 2 Detach . | . . . Swap 2 | . 2 . Drop 3 | . 3 . Fire 115 | . 107 8 Melee . | . . . Ram 2 | . 1 1 Kick . | . . . Crush . | . . . Escape Stasis . | . . . Rewire . | . . . Trap . | . . . Miscellaneous . | . . . Route ------- -11/Scrapyard -10/Materials (discovered 4 exits: [*Mat x2] / *Min x2) -10/Mines History --------- Turn | Location | Event 14 | -11/Scrapyard | Discovered new exit (range 15) 41 | -11/Scrapyard | Entered Materials 81 | -10/Materials | Discovered new exit (range 16) 255 | -10/Materials | Discovered new exit (range 4) 306 | -10/Materials | Build established: Mutant 553 | -10/Materials | Identified exit to Mines 644 | -10/Materials | Core integrity fell below 50% 676 | -10/Materials | Lost 3 parts (1n2w) 825 | -10/Materials | Lost 3 parts (1p2w) 935 | -10/Materials | Discovered new exit (range 11) 1131 | -10/Materials | Entered Mines 1142 | -10/Mines | Core integrity fell below 20% 1185 | -10/Mines | Destroyed self with Grenade Launcher Last Messages --------------- 00998_ K-01 Serf collects debris. 01003_ K-01 Serf cleans the Neutrino Reactor. 01010_ Sml. Laser melted. 01010_ G-34 Mercenary destroyed. 01012_ K-01 Serf collects debris. 01035_ ALERT: Hostiles spotted, dispatching reinforcements to Terminal M006. 01041_ Destroyed Hover Unit. 01054_ Destroyed Datajack. 01057_ U-05 Engineer lays Concrete. 01072_ R-06 Scavenger collects Imp. Terrain Scanner. 01088_ R-06 Scavenger collects Ion Engine. LOCATION=MINES GOAL=ESCAPE 01147_ Wheel destroyed. 01160_ Beam Cannon destroyed. 01165_ Slammed into T-07 Excavator. 01166_ T-07 Excavator destroyed. 01170_ Acquired Wheel. 01182_ G-34 Mercenary destroyed. 01184_ The unstable cave ceiling collapses. Map ----- +----------------------------------------------------+ | ?????????????????????????????????????????????????? | | ?????????????????????????????????????????????????? | | ?????????????????????????????????????????????????? | | ?????????????????????????????????????????????????? | | ?????????????????????????????????????????????????? | | ?????????????????????????????????????????????????? | | ?????????????????????????????????????????????????? | | ?????????????????????????????????????????????????? | | ?????????????????????????????????????????????????? | | ?????????????????????????????????????????????????? | | ?????????????????????????????????????????????????? | | ?????????????????????????????????????????????????? | | ?????????????????????????????????????????????????? | | ?????????????????????????????????????????????????? | | ???????????????????????####??????????????????????? | | ???????????????????????# ??????????????????????? | | ???###??#??##?????????## ??????????????????????? | | ??? ?? ?? ?????????# #??????????????????????? | | ???" "?" "?" #???????## ##?????????????????????? | | ???" "?" """ #??????## #??????????????????????? | | """ """ """ #??????# ??????????????????????? | | #??????# ??????????????????????? | | """ """ """ #????### ??????????????????????? | | """ """ """ #????# g ##?????????????????????? | | """ """ """ ###### #?????????????????????? | | #?# @#??????????????????????? | | """ """ ########?## #??????????????????????? | | """ """ #?######### #??????????????????????? | | """ """ #?# #??????????????????????? | | ## #??????????????????????? | | ## #####??????????????????????? | | ################ ???????????????????????????? | | ???????????????## ????????????????????????????? | | ????????????????####?????????????????????????????? | | ?????????????????????????????????????????????????? | | | | | | | | | | | | | | | | | | | | | | | | | | | | | | | +----------------------------------------------------+ Best States ------------- Heat Dissipation 25 Energy Generation 10 Energy Capacity 250 Matter Stores 300 Matter Capacity 300 Sight Range 16 Terrain Scan Density 10 Evasion (%) 44 Item Schematics ----------------- None Robot Schematics ------------------ None Fabricated ------------ Nothing Alien Tech Used ----------------- None Achievements -------------- None Challenges ------------ None Game ------ Seed GaussVisualBoomstick Manual? 0 Play Time 00:18:10 Cumulative 65.9 hours Start 2020.09.09 @ 00:01:36 End 2020.09.09 @ 00:44:46 Sessions 1 Manual Loads 0 Difficulty Rogue Special Mode None Game No. 37 Rogue 37 Adventurer 0 Explorer 0 Win Type - Total 0 Types 0/0/0/0/0/0/0 Lore% 29 Gallery% 48 Achievement% 36 Wizard Run 0 Options --------- ASCII 0 Keyboard 1 Movement Vi Keybinds 0 Fullscreen 2 Font 12/Terminus Map View 83x54 Tactical HUD 1 Map Filters NONE Filters NONE Steam 1 RUN: 8fcdd8c2-3fd0-47fc-b7ea-f27925de68f7